Cogmind - Beta 16.1 @@@ ROGUE MODE // 2026.03.31 @ 09:20:38 Player: Gatamar Result: Destroyed by G-47 Trooper with Particle Gun Performance ------------- Evolutions (0) 0 Regions Visited (1) 200 Robots Destroyed (8) 40 Value Destroyed (154) 154 Prototype IDs (0) 0 Alien Tech Used (0) 0 Bonus (0) 0 TOTAL SCORE: 394 Bonus ------- None Cogmind --------- Core Integrity 0/250 Matter 300/300 Energy 100/100 System Corruption 0% Temperature Cool (15) Movement Core (400) Ox7 Location -10/Materials Parts ------- > --- POWER (1) -------- (None) > --- PROPULSION (2) --- (None) > --- UTILITY (2) ------ Large Storage Unit > --- WEAPON (2) ------- Heavy Hammer > --- INVENTORY (15) --- Light Ion Engine Light Ion Engine Light Treads Medium Matter Pod (73) EM Pulse Gun Small Laser Assault Rifle Heavy Hammer Peak State ------------ > --- POWER ------------ Light Nuclear Core > --- PROPULSION ------- Light Treads > --- UTILITY ---------- Large Storage Unit Sensor Array > --- WEAPON ----------- Heavy Hammer > --- INVENTORY -------- Light Ion Engine Light Ion Engine Aluminum Leg Aluminum Leg Medium Matter Pod EM Pulse Gun Small Laser Assault Rifle Heavy Hammer [Rating: 9] Favorites ----------- Power Light Ion Engine Engine Light Ion Engine Power Core Light Nuclear Core Propulsion Light Treads Treads Light Treads Leg Aluminum Leg Utility Sensor Array Device Sensor Array Storage Large Storage Unit Weapon Heavy Hammer Energy Gun Small Laser Ballistic Gun Assault Rifle Ballistic Cannon Light Cannon Impact Weapon Heavy Hammer Build | -11 -10 ------- Run | Yrd Mat Slots Evolved . | . . Power . | . . Propulsion . | . . Utility . | . . Weapon . | . . Parts Attached 14 | 6 8 Power 2 | 1 1 Engine 1 | 1 . Core 1 | . 1 Reactor . | . . Propulsion 4 | 2 2 Treads 2 | 2 . Leg 2 | . 2 Wheel . | . . Hover . | . . Flight . | . . Utility 3 | . 3 Device 1 | . 1 Storage 2 | . 2 Processor . | . . Hackware . | . . Protection . | . . Artifact . | . . Weapon 5 | 3 2 Energy Gun 2 | 2 . Energy Cannon . | . . Ballistic Gun 1 | 1 . Ballistic Cannon 1 | . 1 Launcher . | . . Special Weapon . | . . Impact Weapon 1 | . 1 Slashing Weapon . | . . Piercing Weapon . | . . Special Melee Weapon . | . . Unidentified Prototypes . | . . Parts Lost 6 | . 6 Power 1 | . 1 Propulsion 3 | . 3 Utility 1 | . 1 Weapon 1 | . 1 Highest Loss Streak 3 | . 3 To Critical Strikes . | . . Average Backups 6 | 3 7 Power 1 | . 1 Propulsion 1 | 1 1 Utility . | . . Weapon 2 | . 3 Tool/Special . | . . Unused Backups 3 | . 3 Power 1 | . 1 Propulsion . | . . Utility 1 | . 1 Weapon 1 | . 1 Tool/Special . | . . Average Slot Usage (%) 85 | . 85 Engine 10 | . 10 Core 2 | . 2 Treads 23 | . 23 Leg 2 | . 2 Device 8 | . 8 Storage 12 | . 12 Energy Gun 2 | . 2 Ballistic Gun 4 | . 4 Ballistic Cannon 8 | . 8 Impact Weapon 9 | . 9 Peak Build Rating 9 | 5 9 Average Rating 6 | 4 7 On Entrance 2 | . 5 Avg Prop Armor Cover (%) . | . . Naked Turns . | . . Heaviest Build 30 | 6 30 Greatest Support 40 | 40 40 Greatest Overweight (x) 7 | . 7 Average Overweight (x) . | . . Largest Inventory Capacity 15 | 5 15 Average Capacity 10 | 5 10 Most Carried 9 | 5 9 Average Carried 6 | 3 7 Final Capacity 15 | 5 15 Final Carried 8 | 5 8 Class Distribution -------------------- 100% | Mutant Dominant Class ---------------- Mutant | -10/Materials Resources | -11 -10 ----------- Run | Yrd Mat Matter Collected 514 | 206 308 Remotely . | . . Salvage Created 213 | . 213 Parts 9 | . 9 Haulers Intercepted 1 | . 1 Recyclers Shooed . | . . Parts Field Recycled . | . . Retrieved Matter . | . . Parts Self-Destructed . | . . Prevented . | . . Parts Restored . | . . Kills | -11 -10 ------- Run | Yrd Mat Combat Hostiles Destroyed 3 | . 3 Guns 1 | . 1 Cannons 1 | . 1 AOE 1 | . 1 Classes Destroyed 6 | . 6 Worker 1 | . 1 Tunneler 1 | . 1 Hauler 1 | . 1 Operator 1 | . 1 Watcher 1 | . 1 Grunt 3 | . 3 Best Kill Streak 2 | . 2 Combat Bots Only 2 | . 2 Max Kills in Single Turn 1 | . 1 Gunslinging . | . . Exploded 1 | . 1 Melee . | . . Uniques/NPCs Destroyed . | . . Combat | -11 -10 -------- Run | Yrd Mat Hostile Shots Fired 80 | . 80 Missed 22 | . 22 Hits 58 | . 58 Projectile 58 | . 58 AOE 1 | . 1 Critical Strikes 1 | . 1 Damage Taken 1025 | . 1025 Core 256 | . 256 Absorbed by Shields . | . . Core Remaining (%) 100 | 100 . Volleys Fired 15 | . 15 Largest 2 | . 2 Hottest 60 | . 60 Shots Fired 27 | . 27 Gun 18 | . 18 Cannon 9 | . 9 Launcher . | . . Special . | . . Kinetic 24 | . 24 Thermal 3 | . 3 Explosive . | . . Electromagnetic . | . . Robot Hit Streak 4 | . 4 Robot Miss Streak 4 | . 4 Penetration Max . | . . Secondary Targets . | . . Shots Hit Robots 22 | . 22 Core Hits 4 | . 4 Critical Kills . | . . Critical Parts Destroyed 3 | . 3 Critical Strikes 3 | . 3 Smash 3 | . 3 Melee Attacks 19 | . 19 Impact 19 | . 19 Slashing . | . . Piercing . | . . Sneak Attacks 4 | . 4 Combat Hostiles . | . . Follow-up Attacks . | . . Damage Inflicted 729 | . 729 Guns 76 | . 76 Cannons 123 | . 123 Explosions . | . . Melee 530 | . 530 Ramming . | . . Kinetic 199 | . 199 Thermal . | . . Explosive . | . . Electromagnetic . | . . Impact 530 | . 530 Slashing . | . . Piercing . | . . Highest Corruption . | . . Average Corruption . | . . Corruption Purged . | . . Corruption Blocked . | . . Overload Shots . | . . Overflow Damage 340 | . 340 Projectiles . | . . Explosions . | . . Melee 340 | . 340 Knockbacks 2 | . 2 Impact 1 | . 1 Kinetic 1 | . 1 Secondary . | . . Self-Inflicted Damage . | . . Shots . | . . Rammed . | . . Targets Rammed . | . . Kicked . | . . Crushed . | . . Highest Temperature 2 | . 2 Average Temperature 2 | . 2 Received Heat Transfer 309 | . 309 Siege Activations . | . . Martial Activations . | . . Shielding Activations . | . . Robots Disrupted . | . . Combat Hostiles . | . . Robots Corrupted 1 | . 1 Combat Hostiles . | . . Parts Fried 7 | . 7 Impact Corruptions 6 | . 6 Robots Melted . | . . Combat Hostiles . | . . Parts Melted . | . . Heat Transferred . | . . Parts Sabotaged . | . . Parts Stolen . | . . Parts Stripped . | . . Power Chain Reactions . | . . Alert | -11 -10 ------- Run | Yrd Mat Maximum Alert Level . | . . Low Security (%) 100 | 100 100 Level 1 . | . . Level 2 . | . . Level 3 . | . . Level 4 . | . . Level 5 . | . . High Security . | . . Max Security . | . . Peak Influence 56 | . 56 Initial . | . . Average 6 | . 7 Influence Increases 135 | . 135 Destroy 0b10 Robot/C 60 | . 60 Destroy 0b10 Robot/NC 25 | . 25 Destroy Leader 14 | . 14 Disable Machine 15 | . 15 Destroy Structure 6 | . 6 Lose Combat Pursuer 15 | . 15 Influence Decreases 135 | . 135 Time Decay 135 | . 135 Squads Dispatched 3 | . 3 Investigation 1 | . 1 Extermination . | . . Reinforcement 2 | . 2 Assault . | . . Garrison . | . . Intercept . | . . Searches Triggered . | . . Construction Impeded . | . . Haulers Reinforced . | . . Active Scanning Responses . | . . Cargo Convoy Interrupts . | . . Stealth | -11 -10 --------- Run | Yrd Mat Distress Signals . | . . Communications Jammed . | . . Distress Signals . | . . Times Spotted 16 | . 16 Peak Tracking Total 5 | . 5 Tactical Retreats 2 | . 2 Traps | -11 -10 ------- Run | Yrd Mat Traps Triggered 2 | . 2 Indirectly . | . . Trap Hack Attempts . | . . Triggered . | . . Disarmed . | . . Reprogrammed . | . . Reused . | . . Traps Extracted . | . . Installed . | . . Triggered . | . . Machines | -11 -10 ---------- Run | Yrd Mat Machines Disabled 1 | . 1 Max in Single Turn 1 | . 1 Machines Repaired . | . . Machines Dismantled . | . . Machines Sabotaged . | . . Overloaded Fab Kills . | . . Hacking | -11 -10 --------- Run | Yrd Mat Machines Accessed . | . . Terminals . | . . Fabricators . | . . Repair Stations . | . . Recycling Units . | . . Scanalyzers . | . . Garrison Access . | . . Total Hacks . | . . Successful . | . . Failed . | . . Catastrophic . | . . Database Lockouts . | . . Manual . | . . Terminals . | . . Fabricators . | . . Repair Stations . | . . Recycling Units . | . . Scanalyzers . | . . Garrison Access . | . . Terminal Hacks . | . . Fabricator Hacks . | . . Repair Station Hacks . | . . Recycling Unit Hacks . | . . Scanalyzer . | . . Garrison Access Hacks . | . . Unauthorized Hacks . | . . Terminals . | . . Fabricators . | . . Repair Stations . | . . Recycling Units . | . . Scanalyzers . | . . Garrison Access . | . . Data Cores Recovered . | . . Used . | . . Hacking Detections . | . . Full Trace Events . | . . Feedback Events . | . . Feedback Blocked . | . . Robot Schematics Acquired . | . . Robots Built . | . . Authchips . | . . Time . | . . Total Robot Build Rating . | . . Part Schematics Acquired . | . . Parts Built . | . . Authchips . | . . Time . | . . Total Part Build Rating . | . . Part Studies Acquired . | . . Parts Repaired . | . . Time . | . . Parts Recycled . | . . Recycled Matter . | . . Retrieved Matter . | . . Retrieved Components . | . . Parts Scanalyzed . | . . Part Schematics Acquired . | . . Parts Damaged . | . . Bothacking | -11 -10 ------------ Run | Yrd Mat Used RIF Installer . | . . Robots Hacked . | . . Non-combat . | . . Combat . | . . Robot Hacks Applied . | . . Relay Couplers Released . | . . Fabnet Peak Effective % . | . . Robots Rewired . | . . Allies Hacked . | . . Hacks Repelled . | . . Allies | -11 -10 -------- Run | Yrd Mat Total Allies . | . . Largest Group . | . . Highest-Rated Group . | . . Highest-Rated Ally . | . . Total Orders . | . . Ally Attacks . | . . Total Damage . | . . Kills . | . . Allies Corrupted . | . . Allies Melted . | . . Intel | -11 -10 ------- Run | Yrd Mat Active Infowar (turns) 414 | . 414 Sensors 414 | . 414 Robot Analysis Total . | . . Derelict Logs Recovered . | . . Drone Launches . | . . Drone Recoveries . | . . Exploration | -11 -10 ------------- Run | Yrd Mat Turns Passed 784 | 81 703 Spaces Moved 375 | 43 332 Core 4 | 1 3 Treads 339 | 42 297 Legs 32 | . 32 Wheels . | . . Hover . | . . Flight . | . . Fastest Speed 50 | 50 150 Average Speed 170 | 157 172 Slowest Speed 400 | 160 400 Overloaded Moves . | . . Propulsion Burnouts . | . . Robots Hopped . | . . Potential Cave-ins . | . . Cave-ins Triggered . | . . Exploration Rate (%) 15 | 4 26 Regions Visited 1 Branch Regions . Pre-discovered Areas . | . . Known Exits Taken . | . . Unknown Exits Taken 1 | 1 . Scrap Searched . | . . Spaces Dug 5 | . 5 Terrain Destroyed 5 | . 5 Melee 5 | . 5 Projectile . | . . AOE . | . . Terrain Rammed . | . . Walls Destroyed . | . . Machines Disabled . | . . Actions | -11 -10 --------- Run | Yrd Mat Total 452 | 53 399 Wait 15 | . 15 Move 374 | 42 332 Hop . | . . Pick Up 9 | 5 4 Fast Attach 10 | 5 5 Attach 2 | . 2 Detach . | . . Swap 7 | 1 6 Drop 1 | . 1 Fire 15 | . 15 Melee 19 | . 19 Ram . | . . Kick . | . . Crush . | . . Escape Stasis . | . . Rewire . | . . Trap . | . . Miscellaneous . | . . Route ------- -11/Scrapyard -10/Materials (discovered 2 exits: [*Min] / [*Sub]) History --------- Turn | Location | Event 19 | -11/Scrapyard | Discovered new exit (range 15) 82 | -11/Scrapyard | Entered Materials 155 | -10/Materials | Discovered new exit (range 15) 276 | -10/Materials | Discovered new exit (range 12) 326 | -10/Materials | Build established: Mutant 682 | -10/Materials | Derelicts attacked the area 782 | -10/Materials | Core integrity fell below 50% 785 | -10/Materials | Core integrity fell below 20% 785 | -10/Materials | Destroyed by G-47 Trooper with Particle Gun Last Messages --------------- 00650_ U-05 Engineer lays Concrete. 00652_ U-05 Engineer builds a Wall. 00652_ K-01 Serf collects debris. 00653_ U-05 Engineer lays Concrete. 00655_ K-01 Serf collects debris. 00656_ U-05 Engineer lays Concrete. 00657_ U-05 Engineer builds a Wall. 00658_ U-05 Engineer lays Concrete. 00660_ The unstable cave ceiling collapses. 00660_ U-05 Engineer builds a Wall. 00664_ U-05 Engineer lays Concrete. 00665_ U-05 Engineer builds a Wall. 00682_ ALERT: Derelict incursion detected, rerouting patrols to target area. 00702_ K-01 Serf destroyed. 00719_ Sensor Array destroyed. 00751_ Acquired 54 matter. 00771_ Aluminum Leg destroyed. 00775_ Lgt. Nuclear Core destroyed. 00779_ Aluminum Leg destroyed. Map ----- +----------------------------------------------------+ | ????????########### * # # #???????????? | | ??????????????????## %## [ # #???????????? | | ?????????#####?????# ## # ##??????????? | | ????????##"""##????# ######## ##??????????? | | ???????##"!! "##???# ##??????????? | | ???????#"" ""#???# #???????????? | | ???????# #???# ######### ##????????### | | ???????# < #???# #??????# ####### | | ???????# #???" #??????# | | ???????# #???# #???#### | | ???????## ##???# #?### ## | | ????????## ##????# #?# # #### | | ?????????# #?????# ##############???? | | ?????????# #?????#|## # ##????? """ | | ?????????# #?????#%## # #??????"""?? | | ????????## ##???##=## # # #??????"??? | | ????????# ##### # # # #???? ?? | | ????????# # # ### #?? ?? | | ????????# ! # # #???#? ? | | ????????#[ # "T ####### ? | | ????????# ##### # "" + ? | | ???????## #???# # # | | ???????# #???#RRR#####+#### % | | ???????#!! !!#???# g g ?? | | ???????#!!//!!#???# #????????? | | ???????########???# @ #????????? | | ??????????????????############### #????????? | | ?????????????????????????????????? #????????? | | ??????????????????????????????????? #????????? | | ?????????????????????????????????????????????? | | ?????????????????????????????????????????????? | | ?????????????????????????????????????????????? | | ?????????????????????????????????????????????? | | ?????????????????????????????????????????????? | | ?????????????????????????????????????????????? | | ?????????????????????????????????????????????? | | ?????????????????????????????????????????????? | | ?????????????????????????????????????????????? | | ?????????????????????????????????????????????? | | ?????????????????????????????????????????????? | | ?????????????????????????????????????????????? | | ?????????????????????????????????????????????? | | ?????????????????????????????????????????????? | | ?????????????????????????????????????????????? | | ?????????????????????????????????????????????? | | ?????????????????????????????????????????????? | | ?????????????????????????????????????????????? | | ?????????????????????????????????????????????? | | ?????????????????????????????????????????????? | | ?????????????????????????????????????????????? | +----------------------------------------------------+ Best States ------------- Heat Dissipation 25 Energy Generation 14 Energy Capacity 160 Matter Stores 300 Matter Capacity 300 Sight Range 16 Robot Scan Range 14 Terrain Scan Density 10 Evasion (%) 40 Recoil Reduction 2 Item Schematics ----------------- None Robot Schematics ------------------ None Fabricated ------------ Nothing Repaired ---------- Nothing Studied --------- None Alien Tech Used ----------------- None Achievements -------------- None Challenges ------------ None Game ------ Seed BombardmentSpectralFirepult Manual? 0 Play Time 00:05:33 Cumulative 29.8 hours Start 2026.03.31 @ 09:15:00 End 2026.03.31 @ 09:20:38 Sessions 1 Manual Loads 0 Difficulty Rogue Special Mode None Game No. 76 Rogue 76 Adventurer 0 Explorer 0 Win Type - Total 0 Types 0/0/0/0/0/0/0/0/0/0 Lore% 26 Gallery% 28 Achievement% 21 Wizard Run 0 Options --------- Layout 2 ASCII 0 Keyboard 0 Movement Numpad Keybinds 0 Fullscreen 1 Font 32/SmallcapsGlow Map View 50x44 Zoom Use 0% Tactical HUD 1 Map Filters NONE Filters NONE Steam 1 RUN: 9008c0a2-1af1-476b-b60a-2cb3c086c40f